fUST/lending_fUST_20260109
["ID","MTS","AMOUNT","RATE_DAILY","PERIOD"]
[401036022,1767891043534,-163.27,0.00021,2]
[401036024,1767891043543,-1668.98,0.00021,2]
[401036026,1767891043552,-435.2,0.00021237,2]
[401036028,1767891043562,-2884.88182039,0.0002137,2]
[401036030,1767891043571,-954.57435758,0.00021463,2]
[401036033,1767891043581,-206.0,0.00021507,4]
[401036035,1767891043592,-256.27,0.000221,2]
[401036038,1767891043601,-20550.55,0.000221,2]
[401036041,1767891043610,-875.15,0.000221,7]
[401036043,1767891043619,-151.0,0.000222,5]
[401036045,1767891043629,-4895.14609926,0.00022209,2]
[401036047,1767891043639,-4136.0,0.00022304,2]
[401036049,1767891043648,-2000.51544348,0.00022413,2]
[401036051,1767891043657,-435.2,0.00022434,2]
[401036053,1767891043666,-208.0,0.00022603,7]
[401036055,1767891043676,-1000.0,0.00022766,10]
[401036057,1767891043686,-1000.0,0.00022766,10]
[401036060,1767891043705,-1000.0,0.00022766,10]
[401036063,1767891043717,-2373.26906487,0.00022875,2]
[401036065,1767891043727,-2373.26906487,0.00023013,2]
[401036067,1767891043736,-2373.26906487,0.0002342,2]
[401036069,1767891043747,-1037.18175391,0.00023463,2]
[401036071,1767891043757,-151.0,0.000236,6]
[401036073,1767891043767,-435.2,0.0002363,2]
[401036075,1767891043778,-2373.26906487,0.00023693,2]
[401036077,1767891043788,-209.0,0.00023699,11]
[401036079,1767891043798,-5000.0,0.00023858,2]
[401036081,1767891043808,-4895.1460992,0.0002388,2]
[401036083,1767891043818,-164.69,0.000239,7]
[401036085,1767891043828,-163.27,0.000239,7]
[401036087,1767891043839,-1668.98,0.000239,14]
[401036089,1767891043848,-5496.32369959,0.0002398,2]
[401036092,1767891043858,-875.15,0.00024,7]
[401036094,1767891043869,-2373.26906487,0.00024071,2]
[401036096,1767891043879,-3541.02557876,0.00024191,2]
[401036098,1767891043889,-2373.26906487,0.00024348,2]
[401036100,1767891043899,-2373.26906487,0.00024425,2]
[401036102,1767891043908,-20550.55,0.000245,2]
[401036104,1767891043918,-211.0,0.00024795,14]
[401036106,1767891043930,-250.0,0.000248,2]
[401036108,1767891043940,-250.4,0.000248,2]
[401036110,1767891043954,-3673.62214848,0.00024824,2]
[401036113,1767891043964,-435.2,0.00024826,2]
[401036115,1767891043975,-2373.26906487,0.00024847,2]
[401036117,1767891043985,-167.4,0.000249,7]
[401036119,1767891043995,-643721.038142,0.000249,2]
[401036121,1767891044007,-916.0706166,0.00024924,17]
[401036123,1767891044017,-509.0,0.00024932,7]
[401036125,1767891044027,-184.0,0.00025,7]
[401036127,1767891044037,-167.0,0.00025,7]
[401036129,1767891044047,-509.0,0.00025,7]
[401036132,1767891044058,-1000.0,0.00025042,10]
[401036134,1767891044068,-1000.0,0.00025042,10]
[401036136,1767891044078,-1000.0,0.00025042,10]
[401036138,1767891044088,-715.0,0.00025042,10]
[401036140,1767891044098,-2373.26906487,0.00025181,2]
[401036142,1767891044107,-250.0,0.00025205,2]
[401036144,1767891044117,-256.27,0.000253,2]
[401036146,1767891044127,-5000.0,0.00025302,2]
[401036148,1767891044137,-2373.26906487,0.00025419,2]
[401036150,1767891044147,-1119.78915024,0.00025463,2]
[401036152,1767891044157,-164.69,0.000255,7]
[401036154,1767891044166,-163.27,0.000255,7]
[401036156,1767891044176,-1668.98,0.000255,14]
[401036158,1767891044187,-4895.1460992,0.00025551,2]
[401036161,1767891044196,-875.15,0.000256,7]
[401036163,1767891044207,-160.39552915,0.00025617,2]
[401036165,1767891044219,-161.25273962,0.00025617,2]
[401036167,1767891044230,-157.67349166,0.00025617,2]
[401036169,1767891044239,-500.0,0.00025617,2]
[401036171,1767891044249,-500.0,0.00025617,2]
[401036173,1767891044259,-151.87543581,0.00025617,2]
[401036175,1767891044268,-2373.26906487,0.00025623,2]
[401036177,1767891044278,-350.0,0.00025753,2]
[401036179,1767891044291,-500.0,0.00025754,2]
[401036181,1767891044302,-500.0,0.00025754,2]
[401036183,1767891044312,-916.0706166,0.00025868,18]
[401036185,1767891044322,-212.0,0.0002589,18]
[401036187,1767891044332,-167.0,0.0002589,7]
[401036189,1767891044341,-509.0,0.0002589,7]
[401036192,1767891044351,-238.94117694,0.00025891,2]
[401036194,1767891044362,-196.0,0.00025891,2]
[401036196,1767891044371,-200.0,0.00025891,2]
[401036198,1767891044381,-200.0,0.00025891,2]
[401036200,1767891044391,-200.0,0.00025891,2]
[401036202,1767891044400,-500.0,0.00025891,2]
[401036204,1767891044410,-500.0,0.00025891,2]
[401036206,1767891044419,-291.54632792,0.00025891,2]
[401036208,1767891044433,-180.01980218,0.00025967,2]
[401036210,1767891044442,-20550.55,0.00026,2]
[401036212,1767891044452,-1041.66666667,0.00026,10]
[401036214,1767891044463,-2373.26906487,0.00026021,2]
[401036216,1767891044472,-435.2,0.00026022,2]
[401036218,1767891044482,-500.0,0.00026028,2]
[401036220,1767891044492,-500.0,0.00026028,2]
[401036222,1767891044502,-170.74581839,0.00026028,2]
[401036225,1767891044514,-2373.26906487,0.00026063,2]
[401036227,1767891044524,-172.18674375,0.00026131,2]
[401036229,1767891044534,-500.0,0.00026165,2]
[401036231,1767891044543,-245.32757896,0.00026165,2]
[401036233,1767891044552,-500.0,0.00026165,2]
[401036235,1767891044562,-161.2966229,0.00026165,2]
[401036237,1767891044572,-3673.62214848,0.00026264,2]
[401036239,1767891044582,-450.0,0.00026301,2]
[401036241,1767891044592,-200.0,0.00026302,2]
[401036243,1767891044602,-500.0,0.00026302,2]
[401036245,1767891044611,-500.0,0.00026302,2]
[401036247,1767891044620,-1200.0,0.00026409,7]
[401036249,1767891044632,-500.0,0.00026439,2]
[401036251,1767891044642,-500.0,0.00026439,2]
[401036253,1767891044651,-1200.0,0.00026529,7]
[401036255,1767891044661,-2373.26906487,0.00026544,2]
[401036257,1767891044670,-500.0,0.00026576,2]
[401036259,1767891044680,-500.0,0.00026576,2]
[401036261,1767891044690,-2373.26906487,0.00026631,2]
[401036263,1767891044700,-875.15,0.000267,7]
[401036266,1767891044710,-306.12863019,0.00026713,2]
[401036267,1767891044719,-500.0,0.00026713,2]
[401036270,1767891044730,-5000.0,0.00026747,2]
[401036272,1767891044739,-1200.0,0.00026795,7]
[401036274,1767891044748,-916.0706166,0.00026812,20]
[401036277,1767891044766,-500.0,0.00026813,7]
[401036279,1767891044781,-600.0,0.00026827,7]
[401036282,1767891044797,-550.0,0.00026849,2]
[401036284,1767891044811,-500.0,0.0002685,2]
[401036287,1767891044825,-160.18626186,0.0002687,2]
[401036289,1767891044836,-164.69,0.000269,7]
[401036291,1767891044847,-163.27,0.000269,7]
[401036294,1767891044861,-1668.98,0.000269,14]
[401036296,1767891044873,-500.0,0.00026903,7]
[401036298,1767891044885,-2373.26906487,0.00026948,2]
[401036301,1767891044898,-1200.0,0.00026968,7]
[401036303,1767891044911,-500.0,0.00026984,7]
[401036306,1767891044924,-240.0,0.00026986,22]
[401036308,1767891044939,-500.0,0.00026987,2]
[401036310,1767891044951,-1041.66666667,0.00027,7]
[401036313,1767891044964,-500.0,0.00027124,2]
[401036315,1767891044976,-281.28077948,0.00027181,7]
[401036317,1767891044989,-516.0,0.00027185,7]
[401036319,1767891045001,-256.27,0.000272,2]
[401036322,1767891045013,-435.2,0.00027219,2]
[401036324,1767891045025,-4895.1460992,0.00027222,2]
[401036327,1767891045041,-500.0,0.00027261,2]
[401036329,1767891045055,-2373.26906487,0.00027283,2]
[401036331,1767891045066,-20550.55,0.000273,2]
[401036333,1767891045079,-1200.0,0.00027315,7]
[401036336,1767891045093,-4403.17312808,0.0002736,2]
[401036338,1767891045105,-500.0,0.00027397,5]
[401036340,1767891045117,-500.0,0.00027397,5]
[401036343,1767891045128,-581.12068831,0.00027397,5]
[401036345,1767891045139,-500.0,0.00027397,5]
[401036347,1767891045148,-500.0,0.00027397,5]
[401036349,1767891045159,-1000.0,0.00027397,2]
[401036351,1767891045171,-500.0,0.00027397,5]
[401036353,1767891045181,-500.0,0.00027397,5]
[401036356,1767891045193,-500.0,0.00027397,5]
[401036358,1767891045204,-500.0,0.00027397,5]
[401036360,1767891045216,-500.0,0.00027397,5]
[401036363,1767891045228,-500.0,0.00027397,5]
[401036365,1767891045239,-555.06104803,0.00027397,5]
[401036367,1767891045252,-500.0,0.00027397,5]
[401036369,1767891045263,-500.0,0.00027397,5]
[401036374,1767891045290,-500.0,0.00027397,5]
[401036379,1767891045307,-504.65134206,0.00027397,5]
[401036382,1767891045322,-444.81623123,0.00027397,5]
[401036384,1767891045333,-1230.77,0.00027397,5]
[401036386,1767891045344,-500.0,0.00027397,5]
[401036389,1767891045354,-500.0,0.00027397,5]
[401036390,1767891045365,-500.0,0.00027397,5]
[401036391,1767891045376,-500.0,0.00027397,5]
[401036392,1767891045389,-500.0,0.00027397,5]
[401036394,1767891045403,-500.0,0.00027397,5]
[401036396,1767891045417,-500.0,0.00027397,5]
[401036398,1767891045429,-515.98009134,0.00027397,5]
[401036400,1767891045439,-500.0,0.00027397,5]
[401036401,1767891045451,-500.0,0.00027397,5]
[401036402,1767891045462,-1000.0,0.00027397,2]
[401036403,1767891045475,-500.0,0.00027397,5]
[401036404,1767891045492,-259.24674264,0.00027397,5]
[401036405,1767891045504,-500.0,0.00027397,5]
[401036406,1767891045515,-500.0,0.00027397,5]
[401036407,1767891045526,-209.74455448,0.00027397,5]
[401036408,1767891045536,-571.67278031,0.00027397,5]
[401036409,1767891045547,-500.0,0.00027397,5]
[401036410,1767891045559,-196.28076608,0.00027397,5]
[401036411,1767891045571,-500.0,0.00027397,5]
[401036412,1767891045583,-570.47276911,0.00027397,5]
[401036413,1767891045596,-500.0,0.00027397,5]
[401036414,1767891045609,-507.65379282,0.00027397,5]
[401036415,1767891045621,-500.0,0.00027397,5]
[401036416,1767891045634,-200.0,0.00027397,5]
[401036417,1767891045648,-315.93211784,0.00027397,5]
[401036418,1767891045660,-500.0,0.00027397,5]
[401036419,1767891045672,-472.61462638,0.00027397,5]
[401036420,1767891045684,-164.88277819,0.00027397,5]
[401036421,1767891045697,-600.95562412,0.00027397,5]
[401036422,1767891045708,-526.68858414,0.00027397,5]
[401036423,1767891045719,-254.68287455,0.00027397,5]
[401036424,1767891045731,-480.91889831,0.00027397,5]
[401036425,1767891045743,-395.86062602,0.00027397,5]
[401036426,1767891045755,-500.0,0.00027397,5]
[401036427,1767891045768,-191.68238698,0.00027397,5]
[401036428,1767891045780,-273.30967942,0.00027397,5]
[401036429,1767891045791,-500.0,0.00027397,5]
[401036430,1767891045803,-272.92255214,0.00027397,5]
[401036431,1767891045815,-266.51671478,0.00027397,5]
[401036432,1767891045826,-500.0,0.00027397,5]
[401036434,1767891045837,-500.0,0.00027397,5]
[401036435,1767891045848,-500.0,0.00027397,5]
[401036436,1767891045859,-216.49445658,0.00027397,5]
[401036438,1767891045869,-500.0,0.00027397,5]
[401036439,1767891045880,-500.0,0.00027397,5]
[401036440,1767891045891,-301.01531088,0.00027397,5]
[401036441,1767891045903,-487.2589938,0.00027397,5]
[401036442,1767891045913,-500.0,0.00027397,5]
[401036443,1767891045924,-500.0,0.00027397,5]
[401036444,1767891045939,-500.0,0.00027397,5]
[401036445,1767891045950,-500.0,0.00027397,5]
[401036446,1767891045960,-500.0,0.00027397,5]
[401036447,1767891045971,-500.0,0.00027397,5]
[401036448,1767891045982,-500.0,0.00027397,5]
[401036449,1767891045993,-203.70594724,0.00027397,5]
[401036450,1767891046005,-355.64999287,0.00027397,5]
[401036451,1767891046016,-500.0,0.00027397,5]
[401036452,1767891046028,-563.95,0.00027397,5]
[401036453,1767891046038,-500.0,0.00027397,5]
[401036454,1767891046050,-500.0,0.00027397,5]
[401036455,1767891046061,-478.06035324,0.00027397,5]
[401036456,1767891046072,-500.0,0.00027397,5]
[401036457,1767891046082,-303.38565511,0.00027397,5]
[401036458,1767891046093,-500.0,0.00027397,5]
[401036459,1767891046103,-500.0,0.00027397,5]
[401036460,1767891046114,-500.0,0.00027397,5]
[401036461,1767891046125,-500.0,0.00027397,5]
[401036462,1767891046136,-454.58836464,0.00027397,5]
[401036463,1767891046146,-500.0,0.00027397,5]
[401036464,1767891046157,-500.0,0.00027397,5]
[401036465,1767891046168,-500.0,0.00027397,5]
[401036466,1767891046179,-500.0,0.00027397,5]
[401036467,1767891046190,-500.0,0.00027397,5]
[401036468,1767891046201,-289.69021433,0.00027397,5]
[401036469,1767891046212,-417.98666216,0.00027397,5]
[401036470,1767891046223,-454.68517334,0.00027397,5]
[401036471,1767891046235,-422.42202059,0.00027397,5]
[401036472,1767891046245,-474.68379948,0.00027397,5]
[401036473,1767891046256,-501.8834924,0.00027397,5]
[401036474,1767891046267,-500.0,0.00027397,5]
[401036475,1767891046279,-500.0,0.00027397,5]
[401036476,1767891046290,-500.0,0.00027397,5]
[401036477,1767891046301,-500.0,0.00027397,5]
[401036478,1767891046312,-500.0,0.00027397,5]
[401036479,1767891046323,-500.0,0.00027397,5]
[401036480,1767891046335,-500.0,0.00027397,5]
[401036481,1767891046346,-500.0,0.00027397,5]
[401036482,1767891046357,-500.0,0.00027397,5]
[401036483,1767891046368,-500.0,0.00027397,5]
[401036484,1767891046380,-543.52291484,0.00027397,5]
[401036485,1767891046391,-500.0,0.00027397,5]
[401036486,1767891046403,-460.4,0.00027397,5]
[401036487,1767891046415,-555.96752571,0.00027397,5]
[401036488,1767891046428,-500.0,0.00027397,5]
[401036489,1767891046439,-500.0,0.00027397,5]
[401036490,1767891046450,-502.62309958,0.00027397,5]
[401036491,1767891046461,-500.0,0.00027397,5]
[401036492,1767891046472,-500.0,0.00027397,2]
[401036493,1767891046484,-594.35609104,0.00027397,5]
[401036494,1767891046495,-500.0,0.00027397,5]
[401036495,1767891046505,-500.0,0.00027397,5]
[401036496,1767891046518,-500.0,0.00027397,5]
[401036497,1767891046529,-505.9524141,0.00027397,5]
[401036498,1767891046540,-500.0,0.00027397,5]
[401036499,1767891046550,-648.72760221,0.00027397,5]
[401036500,1767891046560,-500.0,0.00027397,5]
[401036501,1767891046571,-500.0,0.00027397,5]
[401036502,1767891046581,-500.0,0.00027397,5]
[401036503,1767891046592,-500.0,0.00027397,5]
[401036504,1767891046603,-500.0,0.00027397,5]
[401036505,1767891046615,-558.8788453,0.00027397,5]
[401036506,1767891046626,-500.0,0.00027397,5]
[401036507,1767891046637,-508.28219185,0.00027397,5]
[401036508,1767891046647,-500.0,0.00027397,5]
[401036509,1767891046657,-226.16698229,0.00027397,5]
[401036510,1767891046667,-553.26872399,0.00027397,5]
[401036511,1767891046679,-500.0,0.00027397,5]
[401036512,1767891046690,-500.0,0.00027397,5]
[401036513,1767891046700,-500.0,0.00027397,5]
[401036514,1767891046711,-500.0,0.00027397,5]
[401036515,1767891046721,-500.0,0.00027397,5]
[401036516,1767891046731,-500.0,0.00027397,5]
[401036517,1767891046741,-322.68652047,0.00027397,5]
[401036518,1767891046751,-573.54037879,0.00027397,5]
[401036519,1767891046762,-532.39891321,0.00027397,5]
[401036520,1767891046773,-479.89299828,0.00027397,5]
[401036521,1767891046783,-500.0,0.00027397,5]
[401036522,1767891046793,-500.0,0.00027397,5]
[401036523,1767891046803,-500.0,0.00027397,5]
[401036524,1767891046813,-500.0,0.00027397,5]
[401036525,1767891046824,-500.0,0.00027397,5]
[401036526,1767891046834,-184.88515932,0.00027397,5]
[401036527,1767891046845,-500.0,0.00027397,5]
[401036528,1767891046855,-500.0,0.00027397,5]
[401036529,1767891046865,-500.0,0.00027397,5]
[401036530,1767891046876,-532.93989261,0.00027397,5]
[401036531,1767891046888,-500.0,0.00027397,5]
[401036532,1767891046898,-500.0,0.00027397,5]
[401036533,1767891046909,-500.0,0.00027397,5]
[401036534,1767891046920,-500.0,0.00027397,5]
[401036535,1767891046931,-500.0,0.00027397,5]
[401036536,1767891046942,-500.0,0.00027397,5]
[401036541,1767891047192,-500.0,0.00027397,5]
[401036542,1767891047210,-373.21992044,0.00027397,5]
[401036543,1767891047223,-500.0,0.00027397,5]
[401036544,1767891047232,-500.0,0.00027397,5]
[401036545,1767891047242,-500.0,0.00027397,5]
[401036546,1767891047251,-500.0,0.00027397,5]
[401036547,1767891047260,-328.9714411,0.00027397,5]
[401036548,1767891047269,-500.0,0.00027397,5]
[401036549,1767891047278,-500.0,0.00027397,5]
[401036550,1767891047287,-500.0,0.00027397,5]
[401036551,1767891047296,-500.0,0.00027397,5]
[401036552,1767891047306,-500.0,0.00027397,5]
[401036553,1767891047315,-507.23683959,0.00027397,5]
[401036554,1767891047325,-500.0,0.00027397,5]
[401036555,1767891047334,-500.0,0.00027397,5]
[401036556,1767891047344,-500.0,0.00027397,5]
[401036557,1767891047354,-522.24212736,0.00027397,5]
[401036558,1767891047363,-500.0,0.00027397,5]
[401036559,1767891047373,-500.0,0.00027397,5]
[401036560,1767891047382,-500.0,0.00027397,5]
[401036561,1767891047391,-500.0,0.00027397,5]
[401036562,1767891047401,-500.0,0.00027397,5]
[401036563,1767891047411,-286.14776941,0.00027397,5]
[401036564,1767891047420,-266.49661152,0.00027397,5]
[401036565,1767891047430,-194.70590484,0.00027397,5]
[401036566,1767891047440,-500.0,0.00027397,5]
[401036568,1767891047449,-244.31728899,0.00027397,5]
[401036569,1767891047458,-500.0,0.00027397,5]
[401036571,1767891047468,-246.56257818,0.00027397,5]
[401036573,1767891047477,-500.0,0.00027397,5]
[401036575,1767891047486,-500.0,0.00027397,5]
[401036576,1767891047495,-500.0,0.00027397,5]
[401036577,1767891047505,-506.45190802,0.00027397,5]
[401036578,1767891047515,-455.48949126,0.00027397,5]
[401036579,1767891047525,-500.0,0.00027397,5]
[401036580,1767891047534,-500.0,0.00027397,5]
[401036581,1767891047545,-500.0,0.00027397,5]
[401036582,1767891047554,-500.0,0.00027397,5]
[401036583,1767891047563,-500.0,0.00027397,5]
[401036584,1767891047573,-500.0,0.00027397,5]
[401036586,1767891047582,-500.0,0.00027397,5]
[401036588,1767891047593,-500.0,0.00027397,5]
[401036590,1767891047603,-500.0,0.00027397,5]
[401036591,1767891047612,-500.0,0.00027397,5]
[401036593,1767891047622,-257.59709478,0.00027397,5]
[401036595,1767891047631,-550.37628333,0.00027397,5]
[401036597,1767891047640,-500.0,0.00027397,5]
[401036598,1767891047650,-500.0,0.00027397,5]
[401036599,1767891047659,-500.0,0.00027397,5]
[401036600,1767891047668,-500.0,0.00027397,5]
[401036601,1767891047678,-500.0,0.00027397,5]
[401036602,1767891047687,-500.0,0.00027397,5]
[401036603,1767891047696,-500.0,0.00027397,5]
[401036604,1767891047705,-500.0,0.00027397,5]
[401036605,1767891047714,-500.0,0.00027397,5]
[401036606,1767891047726,-517.63,0.00027397,5]
[401036607,1767891047736,-465.1847005,0.00027397,5]
[401036608,1767891047744,-3851.05736369,0.00027397,5]
[401036609,1767891047754,-500.0,0.00027397,5]
[401036610,1767891047764,-500.0,0.00027397,5]
[401036611,1767891047773,-480.0,0.00027397,5]
[401036612,1767891047783,-435.89045774,0.00027397,5]
[401036613,1767891047792,-500.0,0.00027397,5]
[401036614,1767891047801,-500.0,0.00027397,5]
[401036615,1767891047810,-500.0,0.00027397,5]
[401036616,1767891047819,-512.93712309,0.00027397,5]
[401036617,1767891047828,-517.26411692,0.00027397,5]
[401036618,1767891047837,-300.59379957,0.00027397,5]
[401036619,1767891047846,-500.0,0.00027397,5]
[401036620,1767891047855,-500.0,0.00027397,5]
[401036621,1767891047864,-516.17803663,0.00027397,5]
[401036622,1767891047873,-513.45357829,0.00027397,5]
[401036623,1767891047882,-500.0,0.00027397,5]
[401036624,1767891047890,-291.31204022,0.00027397,5]
[401036625,1767891047899,-559.13172647,0.00027397,5]
[401036626,1767891047908,-500.0,0.00027397,5]
[401036627,1767891047918,-500.0,0.00027397,5]
[401036628,1767891047929,-500.0,0.00027397,5]
[401036629,1767891047941,-500.0,0.00027397,5]
[401036630,1767891047951,-500.0,0.00027397,5]
[401036631,1767891047960,-2443.5,0.00027397,5]
[401036632,1767891047970,-500.0,0.00027397,5]
[401036633,1767891047982,-517.52044577,0.00027397,5]
[401036634,1767891047991,-171.829328,0.00027397,5]
[401036635,1767891048001,-500.0,0.00027397,5]
[401036636,1767891048013,-500.0,0.00027397,5]
[401036637,1767891048022,-500.0,0.00027397,5]
[401036638,1767891048032,-500.0,0.00027397,5]
[401036639,1767891048042,-251.453668,0.00027397,5]
[401036640,1767891048052,-500.0,0.00027397,5]
[401036641,1767891048061,-500.0,0.00027397,5]
[401036642,1767891048071,-497.71228405,0.00027397,5]
[401036643,1767891048081,-500.0,0.00027397,5]
[401036644,1767891048090,-500.0,0.00027397,5]
[401036645,1767891048099,-500.0,0.00027397,5]
[401036646,1767891048109,-500.0,0.00027397,5]
[401036647,1767891048119,-500.0,0.00027397,5]
[401036648,1767891048128,-500.0,0.00027397,5]
[401036649,1767891048137,-500.0,0.00027397,5]
[401036650,1767891048146,-500.0,0.00027397,5]
[401036651,1767891048154,-500.0,0.00027397,5]
[401036652,1767891048164,-500.0,0.00027397,5]
[401036653,1767891048173,-500.0,0.00027397,5]
[401036654,1767891048182,-500.0,0.00027397,5]
[401036655,1767891048191,-617.23,0.00027397,5]
[401036656,1767891048201,-500.0,0.00027397,5]
[401036657,1767891048210,-500.0,0.00027397,5]
[401036658,1767891048220,-500.0,0.00027397,5]
[401036659,1767891048229,-500.0,0.00027397,5]
[401036660,1767891048238,-500.0,0.00027397,5]
[401036661,1767891048247,-524.2646963,0.00027397,5]
[401036662,1767891048256,-500.0,0.00027397,5]
[401036663,1767891048266,-500.0,0.00027397,5]
[401036664,1767891048275,-297.19318623,0.00027397,5]
[401036665,1767891048284,-500.0,0.00027397,5]
[401036666,1767891048294,-500.0,0.00027397,5]
[401036667,1767891048303,-369.2206853,0.00027397,5]
[401036668,1767891048313,-509.60417229,0.00027397,5]
[401036669,1767891048322,-500.0,0.00027397,5]
[401036670,1767891048331,-500.0,0.00027397,5]
[401036671,1767891048341,-500.0,0.00027397,5]
[401036672,1767891048350,-500.0,0.00027397,5]
[401036673,1767891048359,-500.0,0.00027397,5]
[401036674,1767891048368,-500.0,0.00027397,5]
[401036675,1767891048377,-500.0,0.00027397,5]
[401036676,1767891048386,-560.7242137,0.00027397,5]
[401036677,1767891048396,-500.0,0.00027397,5]
[401036678,1767891048405,-500.0,0.00027397,5]
[401036679,1767891048415,-186.27742242,0.00027397,5]
[401036680,1767891048424,-500.0,0.00027397,5]
[401036681,1767891048434,-500.0,0.00027397,5]
[401036682,1767891048444,-500.0,0.00027397,5]
[401036683,1767891048453,-500.0,0.00027397,5]
[401036684,1767891048463,-500.0,0.00027397,2]
[401036685,1767891048472,-500.0,0.00027397,5]
[401036686,1767891048480,-500.0,0.00027397,5]
[401036687,1767891048489,-500.0,0.00027397,5]
[401036688,1767891048499,-500.0,0.00027397,5]
[401036689,1767891048509,-500.0,0.00027397,5]
[401036690,1767891048519,-500.0,0.00027397,5]
[401036691,1767891048528,-470.25050991,0.00027397,5]
[401036692,1767891048538,-500.0,0.00027397,5]
[401036693,1767891048547,-500.0,0.00027397,5]
[401036694,1767891048555,-364.18785897,0.00027397,5]
[401036695,1767891048565,-500.0,0.00027397,5]
[401036696,1767891048574,-500.0,0.00027397,5]
[401036697,1767891048584,-500.0,0.00027397,5]
[401036698,1767891048594,-500.0,0.00027397,5]
[401036699,1767891048603,-500.0,0.00027397,5]
[401036700,1767891048614,-500.0,0.00027397,5]
[401036701,1767891048624,-641.64319289,0.00027397,5]
[401036702,1767891048634,-500.0,0.00027397,5]
[401036703,1767891048644,-500.0,0.00027397,5]
[401036704,1767891048653,-500.0,0.00027397,5]
[401036705,1767891048663,-500.0,0.00027397,5]
[401036706,1767891048672,-500.0,0.00027397,5]
[401036707,1767891048682,-500.0,0.00027397,5]
[401036708,1767891048692,-500.0,0.00027397,5]
[401036709,1767891048703,-238.10161712,0.00027397,5]
[401036710,1767891048713,-600.55324416,0.00027397,2]
[401036711,1767891048723,-500.0,0.00027397,5]
[401036712,1767891048732,-500.0,0.00027397,5]
[401036713,1767891048742,-500.0,0.00027397,5]
[401036714,1767891048751,-355.29068701,0.00027397,5]
[401036715,1767891048760,-500.0,0.00027397,5]
[401036716,1767891048769,-508.02726493,0.00027397,5]
[401036717,1767891048778,-500.0,0.00027397,2]
[401036718,1767891048787,-501.49189016,0.00027397,5]
[401036719,1767891048796,-500.0,0.00027397,5]
[401036720,1767891048806,-500.0,0.00027397,5]
[401036721,1767891048818,-500.0,0.00027397,5]
[401036722,1767891048827,-500.0,0.00027397,5]
[401036723,1767891048837,-500.0,0.00027397,5]
[401036724,1767891048846,-524.58162969,0.00027397,5]
[401036725,1767891048856,-500.0,0.00027397,5]
[401036726,1767891048866,-500.0,0.00027397,5]
[401036727,1767891048876,-500.0,0.00027397,5]
[401036728,1767891048886,-500.0,0.00027397,5]
[401036729,1767891048895,-557.97,0.00027397,5]
[401036730,1767891048905,-500.0,0.00027397,5]
[401036731,1767891048915,-500.0,0.00027397,5]
[401036732,1767891048925,-500.0,0.00027397,5]
[401036733,1767891048937,-500.0,0.00027397,5]
[401036734,1767891048946,-500.0,0.00027397,5]
[401036735,1767891048956,-260.20035193,0.00027397,5]
[401036736,1767891048965,-393.21553345,0.00027397,5]
[401036737,1767891048978,-500.0,0.00027397,5]
[401036738,1767891048988,-500.0,0.00027397,5]
[401036739,1767891048997,-500.0,0.00027397,5]
[401036740,1767891049008,-500.0,0.00027397,5]
[401036741,1767891049018,-500.0,0.00027397,5]